fUSD/lending_fUSD_20241230
["ID","MTS","AMOUNT","RATE_DAILY","PERIOD"]
[347213872,1735581039476,-150.0,0.00012454,2]
[347213874,1735581039487,-150.0,0.00012457,2]
[347213876,1735581039498,-150.0,0.00012457,2]
[347213879,1735581039510,-150.0,0.00012458,2]
[347213881,1735581039522,-150.0,0.00012459,2]
[347213884,1735581039533,-169.93465654,0.0001246,2]
[347213887,1735581039544,-150.0,0.00012462,2]
[347213891,1735581039556,-150.0,0.00012463,2]
[347213894,1735581039567,-150.0,0.00012463,2]
[347213896,1735581039578,-150.0,0.00012464,2]
[347213898,1735581039589,-150.0,0.00012468,2]
[347213899,1735581039600,-150.0,0.00012468,2]
[347213901,1735581039612,-500.0,0.00012473,2]
[347213902,1735581039622,-150.0,0.00012473,2]
[347213903,1735581039634,-150.0,0.00012475,2]
[347213904,1735581039645,-150.0,0.00012477,2]
[347213905,1735581039660,-150.0,0.00012478,2]
[347213907,1735581039672,-150.0,0.00012483,2]
[347213909,1735581039683,-150.0,0.00012484,2]
[347213911,1735581039694,-150.0,0.00012484,2]
[347213914,1735581039706,-150.0,0.00012484,2]
[347213916,1735581039716,-150.0,0.00012486,2]
[347213918,1735581039727,-150.0,0.00012491,2]
[347213920,1735581039738,-150.0,0.00012493,2]
[347213922,1735581039750,-150.0,0.00012494,2]
[347213924,1735581039761,-150.0,0.00012497,2]
[347213927,1735581039772,-150.0,0.00012498,2]
[347213929,1735581039786,-150.0,0.00012498,2]
[347213931,1735581039797,-306.72078791,0.00012499,2]
[347213933,1735581039809,-504.60369547,0.00012499,2]
[347213935,1735581039820,-500.0,0.00012499,2]
[347213937,1735581039831,-500.0,0.00012499,2]
[347213939,1735581039843,-514.91584079,0.00012499,2]
[347213941,1735581039854,-904.82,0.00012499,2]
[347213944,1735581039865,-555.0,0.00012499,2]
[347213946,1735581039875,-20285.10659043,0.000125,2]
[347213948,1735581039885,-2303648.22885998,0.000125,2]
[347213950,1735581039897,-509.91,0.000125,2]
[347213952,1735581039907,-886980.69217019,0.000125,2]
[347213955,1735581039923,-427.27176948,0.000125,2]
[347213957,1735581039936,-840.00834718,0.000125,2]
[347213963,1735581039980,-142.97423199,0.000125,2]
[347213970,1735581040035,-494.72755185,0.000125,2]
[347213972,1735581040049,-748.0000006,0.000125,2]
[347213975,1735581040066,-121749.5044434,0.000125,2]
[347213978,1735581040091,-563.37776736,0.000125,2]
[347214033,1735581040598,-918.92604844,0.000125,2]
[347214038,1735581040629,-24968.35410415,0.000125,2]
[347214111,1735581041322,-150.0,0.0001223,2]
[347214112,1735581041330,-150.0,0.00012273,2]
[347214113,1735581041339,-150.0,0.00012283,2]
[347214114,1735581041348,-150.0,0.00012291,2]
[347214115,1735581041357,-150.0,0.00012295,2]
[347214116,1735581041365,-150.0,0.0001233,2]
[347214117,1735581041374,-150.0,0.00012422,2]
[347214119,1735581041384,-150.0,0.00012431,2]
[347214121,1735581041393,-150.0,0.00012481,2]
[347214123,1735581041401,-150.0,0.00012497,2]
[347214125,1735581041411,-5918.72968483,0.000125,2]
[347214127,1735581041422,-1945.65058546,0.000125,2]
[347214130,1735581041441,-1803.82920904,0.000125,2]
[347214132,1735581041452,-266.57023378,0.000125,2]
[347214151,1735581041618,-810.97558558,0.000125,2]
[347214154,1735581041629,-1453.7,0.000125,2]
[347214156,1735581041640,-1420.97594,0.000125,2]
[347214160,1735581041671,-10238.33932,0.000125,2]
[347214162,1735581041681,-471.19,0.000125,2]
[347214168,1735581041719,-3505.47,0.000125,2]
[347214313,1735581042777,-1113.0,0.000124,2]
[347214316,1735581042791,-18514.23350529,0.000125,2]
[347214327,1735581042861,-135679.75832466,0.000125,2]
[347214328,1735581042874,-119578.9427427,0.000125,2]
[347214329,1735581042885,-286284.31366491,0.000125,2]
[347214330,1735581042910,-2033.6999997,0.000125,2]
[347214331,1735581042921,-588.82112556,0.000125,2]
[347214332,1735581042932,-10110.07493859,0.000125,2]
[347214359,1735581043177,-682.65982,0.000125,2]
[347214361,1735581043188,-789.1538285,0.000125,2]
[347214390,1735581043449,-606.78,0.000125,2]
[347214391,1735581043493,-16317.0032043,0.000125,2]
[347214392,1735581043504,-4834.5089715,0.000125,2]
[347214393,1735581043515,-1697.85,0.000125,2]
[347214660,1735581046541,-977.63,0.000118,2]
[347214662,1735581046551,-158.51923001,0.00012214,2]
[347214664,1735581046560,-310734.86097332,0.000125,2]
[347214666,1735581046571,-9400.0,0.000125,2]
[347214668,1735581046582,-579.8788256,0.000125,2]
[347214671,1735581046600,-1312.499999,0.000125,2]
[347214675,1735581046626,-4012.43031184,0.000125,2]
[347214677,1735581046641,-1701.65254401,0.000125,2]
[347214680,1735581046653,-1031.57499656,0.000125,2]
[347214682,1735581046664,-2168.10965586,0.000125,2]
[347214684,1735581046675,-11040.8286269,0.000125,2]
[347215030,1735581183330,7540.50026196,0.0002,120]
[347215031,1735581188636,23900.0,0.00011401,2]
[347215032,1735581232247,2000.0,0.00011405,2]
[347215033,1735581236120,166.46,0.00011405,2]
[347215037,1735581342121,1174.34,0.00011403,2]
[347215039,1735581377145,100000.0,0.00017,60]
[347215040,1735581380304,1000.0,0.00011404,2]
[347215041,1735581464942,150.0,0.00011392,2]
[347215042,1735581501986,1378.29,0.00011382,2]
[347215044,1735581580201,158.93,0.00011387,2]
[347215045,1735581629075,1369.91,9.473e-05,2]
[347215046,1735581704320,158.97,0.00011384,2]
[347215047,1735581811044,1814.68,0.00011471,2]
[347215048,1735581836887,250.0,0.0001138,2]
[347215049,1735581902919,150.0,0.00011244,2]
[347215050,1735581905474,150.0,0.00011244,2]
[347215051,1735581909347,150.18069331,0.00011244,2]
[347215052,1735581913207,226.20825454,0.00011244,2]
[347215053,1735581915621,150.13419855,0.00011244,2]
[347215054,1735581917642,244.64092409,0.00011244,2]
[347215055,1735581919458,150.0,0.00011244,2]
[347215056,1735581921317,150.30104655,0.00011244,2]
[347215057,1735581925280,150.09286628,0.00011244,2]
[347215058,1735581929598,150.09713661,0.00011244,2]
[347215059,1735581933784,150.16150847,0.00011244,2]
[347215060,1735581935997,150.00000001,0.00011244,2]
[347215063,1735581959621,161.97,0.00010137,2]
[347215064,1735581985364,5628.5,0.00011211,2]
[347215065,1735581995468,-406.89210634,0.00011507,2]
[347215067,1735582030119,-1588.06789366,0.00011507,2]
[347215068,1735582030140,-1379.69106667,0.00011551,2]
[347215069,1735582030162,-1379.69106666,0.00011568,2]
[347215070,1735582030185,-4207.0,0.00011651,2]
[347215071,1735582030207,-406.8904,0.00011668,2]
[347215072,1735582030228,-417.8955,0.00011668,2]
[347215073,1735582030249,-250.0,0.00011682,2]
[347215074,1735582030270,-166.82,0.00011726,2]
[347215075,1735582030291,-1369.91,0.00011737,2]
[347215076,1735582030312,-490.81,0.0001178,2]
[347215077,1735582030333,-300.0,0.00011828,2]
[347215078,1735582030357,-493.25,0.00011829,2]
[347215079,1735582030379,-150.0,0.00011868,2]
[347215080,1735582030401,-717.903,0.0001188,2]
[347215081,1735582030422,-4466.16442112,0.000119,2]
[347215082,1735582041263,302.2171226,0.00011451,2]
[347215083,1735582047203,250.0,0.00011388,2]
[347215084,1735582048111,-302.2171226,0.00011676,2]
[347215085,1735582048133,-15.97641992,0.000119,2]
[347215086,1735582073712,250.0,0.00011388,2]
[347215087,1735582101933,167.18,0.00011383,2]
[347215101,1735582231962,-300.0,0.00011899,2]
[347215102,1735582231972,-257.86730134,0.00011899,2]
[347215103,1735582231988,-232.69269866,0.00011899,2]
[347215104,1735582231998,-491.42,0.00011899,2]
[347215105,1735582232008,-493.32,0.00011899,2]
[347215106,1735582232018,-495.79,0.00011899,2]
[347215107,1735582232028,-506.93,0.00011899,2]
[347215108,1735582232037,-492.95,0.00011899,2]
[347215109,1735582232046,-502.39,0.000119,2]
[347215110,1735582232056,-491.53,0.000119,2]
[347215111,1735582232066,-993.46876272,0.000119,2]
[347215112,1735582232078,-200208.47373501,0.000119,2]
[347215113,1735582232120,-1138.896135,0.000119,2]
[347215114,1735582232172,-261.6731984,0.000119,2]
[347215115,1735582232350,-2007.43321296,0.000119,2]
[347215138,1735582233094,-9397.34058874,0.000119,2]
[347215142,1735582233120,-1598.54784942,0.000119,2]
[347215309,1735582237878,-28056.09964241,0.000119,2]
[347215311,1735582237942,-2041.8,0.000119,2]
[347215313,1735582237954,-8695.33159424,0.000119,2]
[347215314,1735582237966,-326.45,0.000119,2]
[347215315,1735582238020,-6684.90088071,0.000119,2]
[347215316,1735582238030,-302.2171226,0.000119,2]
[347215317,1735582238039,-509.15,0.000119,2]
[347215318,1735582238049,-495.58,0.000119,2]
[347215319,1735582238058,-498.79,0.000119,2]
[347215320,1735582238067,-450.0,0.00012,2]
[347215321,1735582238077,-429.15546045,0.00012155,2]
[347215322,1735582238086,-150.419,0.00012197,2]
[347215323,1735582238095,-634.0,0.00012197,2]
[347215324,1735582238104,-565.0,0.00012197,2]
[347215325,1735582238113,-1900.0,0.00012197,2]
[347215326,1735582238122,-1282.83,0.000122,2]
[347215327,1735582238131,-437.44,0.000122,2]
[347215328,1735582238143,-182.4158,0.00012213,2]
[347215329,1735582238152,-150.0,0.00012229,2]
[347215330,1735582238162,-150.0,0.00012231,2]
[347215331,1735582238173,-150.0,0.00012235,2]
[347215332,1735582238182,-150.0,0.00012238,2]
[347215333,1735582238191,-150.0,0.00012238,2]
[347215334,1735582238200,-150.0,0.00012246,2]
[347215335,1735582238209,-150.0,0.00012246,2]
[347215336,1735582238219,-150.0,0.00012247,2]
[347215337,1735582238228,-150.0,0.0001225,2]
[347215338,1735582238237,-150.0,0.00012253,2]
[347215339,1735582238247,-150.0,0.00012261,2]
[347215340,1735582238256,-150.0,0.00012261,2]
[347215341,1735582238265,-150.0,0.00012262,2]
[347215342,1735582238274,-150.0,0.00012262,2]
[347215343,1735582238283,-150.0,0.00012265,2]
[347215344,1735582238292,-150.0,0.00012269,2]
[347215345,1735582238301,-150.0,0.0001228,2]
[347215347,1735582238310,-150.0,0.0001229,2]
[347215349,1735582238319,-150.0,0.00012293,2]
[347215350,1735582238329,-288.04828997,0.000123,2]
[347215352,1735582238338,-513.1806625,0.000123,2]
[347215354,1735582238347,-150.0,0.00012301,2]
[347215356,1735582238356,-150.0,0.00012305,2]
[347215358,1735582238366,-150.0,0.00012306,2]
[347215360,1735582238375,-150.0,0.00012309,2]
[347215362,1735582238385,-150.0,0.00012313,2]
[347215364,1735582238397,-508.36,0.00012314,2]
[347215366,1735582238407,-150.0,0.00012325,2]
[347215368,1735582238416,-150.0,0.00012331,2]
[347215370,1735582238426,-150.0,0.00012336,2]
[347215372,1735582238435,-150.0,0.00012341,2]
[347215374,1735582238444,-150.0,0.00012341,2]
[347215376,1735582238452,-150.0,0.00012342,2]
[347215378,1735582238462,-169.93465654,0.00012348,2]
[347215380,1735582238471,-150.0,0.0001235,2]
[347215382,1735582238480,-508.75,0.00012351,2]
[347215384,1735582238489,-150.0,0.00012351,2]
[347215386,1735582238499,-150.0,0.00012354,2]
[347215388,1735582238508,-150.0,0.00012355,2]
[347215390,1735582238517,-150.0,0.00012357,2]
[347215392,1735582238526,-150.0,0.00012365,2]
[347215394,1735582238535,-150.0,0.0001237,2]
[347215396,1735582238544,-3000.0,0.0001237,2]
[347215398,1735582238553,-150.0,0.0001238,2]
[347215400,1735582238562,-150.0,0.00012383,2]
[347215402,1735582238571,-150.0,0.00012384,2]
[347215404,1735582238580,-150.0,0.00012386,2]
[347215406,1735582238590,-3773.0,0.00012388,2]
[347215408,1735582238599,-919.0,0.00012388,2]
[347215410,1735582238608,-1257.0,0.00012388,2]
[347215412,1735582238618,-819.0,0.00012388,2]
[347215414,1735582238627,-3719.0,0.00012388,2]
[347215416,1735582238636,-536.0,0.00012388,2]
[347215418,1735582238647,-150.0,0.00012391,2]
[347215420,1735582238656,-500.0,0.00012399,2]
[347215422,1735582238665,-500.0,0.000124,2]
[347215424,1735582238674,-990.66018289,0.000124,2]
[347215426,1735582238683,-787.212,0.000124,2]
[347215428,1735582238692,-3142.2526,0.000124,2]
[347215430,1735582238701,-281.21244,0.000124,2]
[347215432,1735582238710,-2313.499,0.000124,2]
[347215434,1735582238720,-174.344,0.000124,2]
[347215436,1735582238729,-157.77040212,0.000124,2]
[347215438,1735582238738,-500.0,0.000124,2]
[347215440,1735582238747,-500.0,0.000124,2]
[347215442,1735582238757,-2000.0,0.000124,2]
[347215444,1735582238766,-500.0,0.000124,2]
[347215446,1735582238775,-200.0,0.000124,2]
[347215448,1735582238784,-38965.72328829,0.000124,2]
[347215450,1735582238793,-8920.74870152,0.000124,2]
[347215452,1735582238802,-534.16370625,0.000124,2]
[347215454,1735582238811,-360.04637129,0.000124,2]
[347215456,1735582238821,-255.17446514,0.000124,2]
[347215458,1735582238831,-1670.35646053,0.000124,2]
[347215460,1735582238840,-704.8194517,0.000124,2]
[347215462,1735582238849,-765.66615912,0.000124,2]
[347215464,1735582238858,-498.98,0.00012401,2]
[347215466,1735582238867,-150.0,0.00012402,2]
[347215468,1735582238876,-150.0,0.00012404,2]
[347215470,1735582238885,-150.0,0.00012406,2]
[347215472,1735582238896,-150.0,0.00012407,2]
[347215474,1735582238906,-150.0,0.00012408,2]
[347215477,1735582238915,-150.0,0.00012412,2]
[347215478,1735582238925,-150.0,0.00012412,2]
[347215480,1735582238934,-150.0,0.00012413,2]
[347215483,1735582238943,-150.0,0.00012413,2]
[347215485,1735582238954,-150.0,0.00012416,2]
[347215487,1735582238963,-459.27296142,0.00012419,2]
[347215489,1735582238973,-488.69277361,0.0001242,2]
[347215491,1735582238982,-150.0,0.00012423,2]
[347215493,1735582238991,-150.0,0.00012424,2]
[347215495,1735582239000,-150.0,0.00012426,2]
[347215497,1735582239010,-150.0,0.00012426,2]
[347215499,1735582239019,-150.0,0.0001243,2]
[347215501,1735582239028,-246.55527342,0.00012436,2]
[347215503,1735582239039,-181.295,0.0001244,2]
[347215505,1735582239047,-290.845,0.0001244,2]
[347215507,1735582239056,-3891.0,0.0001244,2]
[347215509,1735582239065,-1172.0,0.0001244,2]
[347215511,1735582239074,-9605.0,0.0001244,2]
[347215513,1735582239083,-150.0,0.00012447,2]
[347215514,1735582239092,-150.0,0.00012451,2]
[347215516,1735582239101,-150.0,0.00012452,2]
[347215518,1735582239110,-150.0,0.00012454,2]
[347215520,1735582239119,-150.0,0.00012458,2]
[347215523,1735582239129,-150.0,0.00012461,2]
[347215525,1735582239138,-490.28,0.00012472,2]
[347215526,1735582239151,-500.0,0.00012473,2]
[347215528,1735582239161,-500.0,0.00012473,2]
[347215530,1735582239171,-150.0,0.00012473,2]
[347215532,1735582239180,-150.0,0.00012475,2]
[347215534,1735582239190,-300.0,0.00012478,2]
[347215536,1735582239199,-150.0,0.0001248,2]
[347215538,1735582239208,-150.0,0.00012493,2]
[347215540,1735582239217,-5810.2945832,0.00012496,2]
[347215542,1735582239227,-150.0,0.00012498,2]
[347215544,1735582239236,-500.0,0.00012499,2]
[347215546,1735582239245,-306.72078791,0.00012499,2]
[347215548,1735582239255,-504.60369547,0.00012499,2]
[347215550,1735582239264,-500.0,0.00012499,2]
[347215552,1735582239273,-500.0,0.00012499,2]
[347215554,1735582239283,-370.26647011,0.00012499,2]
[347215556,1735582239293,-500.0,0.00012499,2]
[347215558,1735582239303,-500.0,0.00012499,2]
[347215560,1735582239313,-334.9,0.00012499,2]
[347215562,1735582239322,-500.0,0.00012499,2]
[347215564,1735582239332,-925.66,0.00012499,2]
[347215566,1735582239342,-41474.16513516,0.000125,2]
[347215568,1735582239351,-2618107.55378274,0.000125,2]
[347215570,1735582239360,-472519.84247556,0.000125,2]
[347215573,1735582239373,-4118.51883051,0.000125,2]
[347215575,1735582239384,-3352.90216768,0.000125,2]
[347215577,1735582239399,-13507.57774289,0.000125,2]
[347215581,1735582239423,-1399.1338458,0.000125,2]
[347215583,1735582239435,-557.91029838,0.000125,2]
[347215585,1735582239447,-1085.0219015,0.000125,2]
[347215588,1735582239458,-316.17,0.000125,2]
[347215590,1735582239469,-27492.01476081,0.000125,2]
[347215592,1735582239480,-2123.30950307,0.000125,2]
[347215594,1735582239491,-3024.98793103,0.000125,2]
[347215596,1735582239502,-1335.575,0.000125,2]
[347215599,1735582239518,-736.57390145,0.000125,2]
[347215601,1735582239529,-618.90086075,0.000125,2]
[347215603,1735582239540,-400.97885,0.000125,2]
[347215606,1735582239551,-480.891175,0.000125,2]
[347215608,1735582239563,-528.69395831,0.000125,2]
[347215610,1735582239574,-830.320196,0.000125,2]
[347215612,1735582239585,-107485.0819691,0.000125,2]
[347215619,1735582239637,-27811.24733751,0.000125,2]
[347215759,1735582241030,-11931.46930936,0.000125,2]
[347215763,1735582241059,-285.6613543,0.000125,2]
[347215771,1735582241123,-550.720004,0.000125,2]
[347215773,1735582241134,-2454.21736595,0.000125,2]
[347215783,1735582241220,-3987.18149722,0.000125,2]
[347215786,1735582241245,-1719.25,0.000125,2]
[347215789,1735582241258,-4603.00000947,0.000125,2]
[347215791,1735582241269,-252.339999,0.000125,2]
[347215796,1735582241308,-683.78934208,0.000125,2]
[347215991,1735582243063,-662.8059982,0.000125,2]
[347215993,1735582243074,-9851.1858904,0.000125,2]
[347215996,1735582243086,-34792.65019696,0.000125,2]
[347215998,1735582243098,-149050.45124557,0.000125,2]
[347216001,1735582243110,-773.41794723,0.000125,2]
[347216003,1735582243121,-544.8241221,0.000125,2]
[347216006,1735582243132,-1087.83172208,0.000125,2]
[347216008,1735582243146,-513.3099998,0.000125,2]
[347216015,1735582243206,-1654.64907587,0.000125,2]
[347216017,1735582243218,-900.07497384,0.000125,2]
[347216020,1735582243244,-33909.01678422,0.000125,2]
[347216023,1735582243256,-1104.21160525,0.000125,2]
[347216027,1735582243286,-1045.10887362,0.000125,2]
[347216029,1735582243298,-7549.40688354,0.000125,2]
[347216033,1735582243323,-3820.65552366,0.000125,2]
[347216035,1735582243334,-33782.90317993,0.000125,2]
[347216038,1735582243352,-933.70796023,0.000125,2]
[347216040,1735582243363,-2313.9666447,0.000125,2]
[347216042,1735582243374,-973.5406171,0.000125,2]
[347216044,1735582243385,-1526.4593829,0.000125,2]
[347216046,1735582243398,-500.0,0.000125,2]
[347216048,1735582243409,-755.82029978,0.000125,2]
[347216051,1735582243421,-948.18799716,0.000125,2]
[347216304,1735582246045,-4917.87640156,0.000125,2]
[347216306,1735582246056,-488.88,0.000125,2]
[347216308,1735582246067,-373975.32025648,0.000125,2]
[347216310,1735582246078,-45733.22765602,0.000125,2]
[347216312,1735582246089,-16584.83640185,0.000125,2]
[347216316,1735582246111,-1023.88349328,0.000125,2]
[347216318,1735582246123,-2891.99427264,0.000125,2]
[347216322,1735582246156,-47679.8392,0.000125,2]
[347216324,1735582246171,-7394.69330603,0.000125,2]
[347216327,1735582246182,-1144.39744237,0.000125,2]
[347216330,1735582246208,-4603.23807746,0.000125,2]
[347216332,1735582246219,-2085.78133,0.000125,2]
[347216343,1735582246306,-152342.6365864,0.000125,2]
[347216350,1735582246367,-39014.999969,0.000125,2]
[347216356,1735582246410,-8714.19909402,0.000125,2]
[347216363,1735582246469,-1760.00000008,0.000125,2]
[347216365,1735582246481,-2969.99999951,0.000125,2]
[347216367,1735582246492,-6371.44,0.000125,2]
[347216459,1735582386689,184.03,9.191e-05,2]
[347216460,1735582408110,150.0,0.00011405,2]
[347216461,1735582419459,925.49,0.00011405,2]
[347216462,1735582512754,919.85,0.00011311,2]
[347216463,1735582518993,1408.66,9.393e-05,2]
[347216464,1735582529436,263.33,0.00011302,2]
[347216465,1735582534322,500.0,0.000115,4]
[347216466,1735582773923,1109.87,0.00011283,2]
[347216467,1735582803099,250.0,0.00011293,2]
[347216468,1735582843362,192.91,0.00010137,2]
[347216469,1735582921334,211.16820125,0.000115,2]
[347216470,1735582932029,250.0,0.00011252,2]
[347216471,1735582974763,1508.66,0.00011253,2]
[347216472,1735583004137,300.0,0.0001126,2]
[347216473,1735583005566,175.51,0.0001126,2]
[347216474,1735583013924,250.0,0.0001126,2]
[347216475,1735583026535,164.78,0.00011259,2]
[347216476,1735583054457,200.0,0.00011242,2]
[347216477,1735583109733,150.0,0.00011244,2]
[347216478,1735583109905,150.0,0.00011327,2]
[347216479,1735583110080,150.0,0.0001141,2]
[347216480,1735583110385,150.0,0.00011494,2]
[347216481,1735583119406,4855.83926355,9e-05,2]
[347216482,1735583125366,150.0,0.00011244,2]
[347216483,1735583128873,252.13369766,9e-05,2]
[347216484,1735583134129,150.0,0.00011244,2]
[347216485,1735583134483,150.0,0.00011494,2]
[347216486,1735583154513,150.0,0.00011244,2]
[347216487,1735583223020,1000.0,0.00011241,2]
[347216488,1735583230726,214.5110559,0.00011477,2]
[347216489,1735583237277,381.47,0.00011241,2]
[347216490,1735583241141,-739.13,0.00011507,2]
[347216491,1735583241164,-2477.41185743,0.00011519,2]
[347216492,1735583241187,-150.0,0.00011577,2]
[347216493,1735583241212,-300.0,0.00011618,2]
[347216494,1735583241235,-927.79283924,0.00011619,2]
[347216498,1735583260126,700.0,0.000115,4]
[347216499,1735583304407,1233.84,0.00011243,2]
[347216503,1735583341120,99.06778164,0.00011238,2]
[347216504,1735583341145,723.72221836,0.00011238,2]
[347216505,1735583351214,23900.0,0.00011243,2]
[347216515,1735583404707,7646.82,0.00011235,2]
[347216528,1735583432191,-165.89,0.00011585,2]
[347216529,1735583432201,-1400.0,0.000116,4]
[347216530,1735583432210,-151.0,0.00011612,2]
[347216531,1735583432220,-300.0,0.00011656,2]
[347216532,1735583432229,-2710.04141689,0.00011657,2]
[347216533,1735583432241,-2669.39667165,0.00011657,2]
[347216534,1735583432252,-2821.92430489,0.00011657,2]
[347216535,1735583432406,-13012.02699034,0.00011657,2]
[347216536,1735583432416,-1408.66,0.00011657,2]
[347216537,1735583432426,-150.0,0.0001166,2]
[347216538,1735583432435,-150.0,0.0001166,2]
[347216539,1735583432445,-400.0,0.00011673,2]
[347216540,1735583432454,-2100.0,0.000117,4]
[347216541,1735583432464,-150.0,0.00011744,2]
[347216542,1735583432473,-150.0,0.00011744,2]
[347216543,1735583432484,-656.6499,0.000118,2]
[347216544,1735583432493,-500.0,0.000118,2]
[347216545,1735583432508,-2900.0,0.000118,4]
[347216546,1735583432517,-150.0,0.00011827,2]
[347216547,1735583432527,-166.37,0.00011834,2]
[347216548,1735583432537,-701.707,0.0001188,2]
[347216549,1735583432547,-3600.0,0.000119,4]
[347216550,1735583432556,-150.0,0.0001191,2]
[347216551,1735583432565,-150.0,0.00011993,2]
[347216552,1735583432575,-150.0,0.00011993,2]
[347216553,1735583432585,-2000.82493447,0.00012,2]
[347216554,1735583432595,-450.0,0.00012,2]
[347216555,1735583432605,-511.17,0.00012,2]
[347216556,1735583432616,-505.42,0.00012026,2]
[347216557,1735583432625,-493.1,0.00012057,2]
[347216558,1735583432633,-164.78,0.00012063,2]
[347216559,1735583432642,-150.0,0.00012077,2]
[347216560,1735583432651,-150.0,0.00012077,2]
[347216561,1735583432660,-437.44,0.000121,2]
[347216562,1735583432670,-771.32,0.000121,2]
[347216563,1735583432679,-437.44,0.000121,2]
[347216564,1735583432688,-771.32,0.000121,2]
[347216565,1735583432698,-437.44,0.000121,2]
[347216566,1735583432707,-771.32,0.000121,2]
[347216567,1735583432717,-323.16016528,0.00012148,2]
[347216568,1735583432727,-150.0,0.0001216,2]
[347216569,1735583432737,-2033.5827,0.000122,2]
[347216570,1735583432746,-2090.0295,0.000122,2]
[347216571,1735583432756,-437.44,0.000122,2]
[347216572,1735583432765,-150.0,0.00012229,2]
[347216573,1735583432774,-150.0,0.00012232,2]
[347216574,1735583432784,-150.0,0.00012237,2]
[347216575,1735583432793,-169.93465654,0.0001224,2]
[347216576,1735583432803,-150.0,0.00012243,2]
[347216577,1735583432812,-150.0,0.00012243,2]
[347216578,1735583432821,-150.0,0.00012243,2]
[347216579,1735583432830,-150.0,0.00012246,2]
[347216580,1735583432840,-150.0,0.00012248,2]
[347216581,1735583432849,-1075.84300224,0.0001225,2]
[347216582,1735583432859,-1131.05966571,0.0001225,2]
[347216583,1735583432869,-150.0,0.00012251,2]
[347216584,1735583432879,-150.0,0.00012258,2]
[347216585,1735583432888,-150.0,0.00012262,2]
[347216586,1735583432897,-938.9891,0.0001227,2]
[347216587,1735583432907,-150.0,0.00012275,2]
[347216588,1735583432916,-150.0,0.00012276,2]
[347216589,1735583432926,-150.0,0.00012278,2]
[347216590,1735583432935,-4058.8275,0.00012299,2]
[347216591,1735583432945,-29085.6249,0.000123,2]
[347216592,1735583432954,-8201.26,0.000123,2]
[347216593,1735583432964,-5000.0,0.000123,2]
[347216594,1735583432973,-150.0,0.00012301,2]
[347216595,1735583432983,-150.0,0.00012304,2]
[347216596,1735583432992,-150.0,0.00012305,2]
[347216597,1735583433001,-150.0,0.00012307,2]
[347216598,1735583433010,-150.0,0.00012311,2]
[347216599,1735583433020,-150.0,0.00012313,2]
[347216600,1735583433029,-150.0,0.00012313,2]
[347216601,1735583433038,-150.0,0.00012327,2]
[347216602,1735583433048,-150.0,0.00012327,2]
[347216603,1735583433058,-150.0,0.00012327,2]
[347216604,1735583433068,-150.0,0.00012333,2]
[347216605,1735583433078,-150.0,0.00012336,2]
[347216606,1735583433088,-150.0,0.00012339,2]
[347216607,1735583433097,-150.0,0.0001234,2]
[347216608,1735583433106,-150.0,0.00012345,2]